Workbook

Sheet Varsity
A1: Heartbreaker 2016 Varsity
B3: # of Qualifying Teams: | E3: 16
A5: Seed | B5: School | C5: Game 1 | D5: Game 2 | E5: Set 1 Total | F5: Game 3 | G5: Game 4 | H5: Set 2 Total | I5: Game 5 | J5: Game 6 | K5: Set 3 Total | L5: Game 7 | M5: Game 8 | N5: Set 4 Total | O5: Game 9 | P5: Game 10 | Q5: Set 5 Total | R5: Game 11 | S5: Game 12 | T5: Total
B6: CC/Mercy Varsity | C6: 174 | D6: 158 | E6: =SUM(C6:D6) -> 332 | F6: 167 | G6: 163 | H6: =SUM(F6:G6) -> 330 | I6: 139 | J6: 183 | K6: =SUM(I6:J6) -> 322 | L6: 148 | M6: 148 | N6: =SUM(L6:M6) -> 296 | O6: 168 | P6: 186 | Q6: =SUM(O6:P6) -> 354 | R6: 155 | S6: 129 | T6: =E6+H6+K6+N6+Q6+R6+S6 -> 1918
B7: Chippewa Valley Varsity A | C7: 162 | D7: 203 | E7: 365 | F7: 196 | G7: 234 | H7: 430 | I7: 157 | J7: 148 | K7: 305 | L7: 179 | M7: 171 | N7: 350 | O7: 158 | P7: 178 | Q7: 336 | R7: 135 | S7: 155 | T7: 2076
B8: Chippewa Valley Varsity B | C8: 208 | D8: 146 | E8: 354 | F8: 156 | G8: 202 | H8: 358 | I8: 167 | J8: 160 | K8: 327 | L8: 115 | M8: 170 | N8: 285 | O8: 171 | P8: 129 | Q8: 300 | R8: 144 | S8: 132 | T8: 1900
B9: Chippewa Valley Varsity C | C9: 170 | D9: 167 | E9: 337 | F9: 157 | G9: 201 | H9: 358 | I9: 179 | J9: 158 | K9: 337 | L9: 190 | M9: 193 | N9: 383 | O9: 139 | P9: 185 | Q9: 324 | R9: 110 | S9: 189 | T9: 2038
B10: Cousino Varsity A | C10: 195 | D10: 190 | E10: 385 | F10: 206 | G10: 160 | H10: 366 | I10: 212 | J10: 208 | K10: 420 | L10: 166 | M10: 196 | N10: 362 | O10: 248 | P10: 235 | Q10: 483 | R10: 181 | S10: 187 | T10: 2384
B11: Cousino Varsity B | C11: 147 | D11: 175 | E11: 322 | F11: 150 | G11: 133 | H11: 283 | I11: 118 | J11: 146 | K11: 264 | L11: 172 | M11: 220 | N11: 392 | O11: 184 | P11: 181 | Q11: 365 | R11: 114 | S11: 105 | T11: 1845
B12: Cousino Varsity C | C12: 137 | D12: 142 | E12: 279 | F12: 174 | G12: 144 | H12: 318 | I12: 167 | J12: 165 | K12: 332 | L12: 155 | M12: 171 | N12: 326 | O12: 158 | P12: 165 | Q12: 323 | R12: 165 | S12: 123 | T12: 1866
B13: Davison Varsity | C13: 201 | D13: 169 | E13: 370 | F13: 194 | G13: 224 | H13: 418 | I13: 171 | J13: 190 | K13: 361 | L13: 217 | M13: 226 | N13: 443 | O13: 165 | P13: 179 | Q13: 344 | R13: 170 | S13: 223 | T13: 2329
B14: DLS/Regina Varsity A | C14: 178 | D14: 188 | E14: 366 | F14: 176 | G14: 168 | H14: 344 | I14: 170 | J14: 146 | K14: 316 | L14: 193 | M14: 153 | N14: 346 | O14: 175 | P14: 194 | Q14: 369 | R14: 158 | S14: 126 | T14: 2025
B15: DLS/Regina Varsity B | C15: 186 | D15: 176 | E15: 362 | F15: 133 | G15: 161 | H15: 294 | I15: 187 | J15: 173 | K15: 360 | L15: 122 | M15: 131 | N15: 253 | O15: 125 | P15: 151 | Q15: 276 | R15: 185 | S15: 155 | T15: 1885
B16: DLS/Regina Varsity C | C16: 178 | D16: 134 | E16: 312 | F16: 99 | G16: 114 | H16: 213 | I16: 125 | J16: 156 | K16: 281 | L16: 134 | M16: 181 | N16: 315 | O16: 139 | P16: 131 | Q16: 270 | R16: 163 | S16: 154 | T16: 1708
B17: East Detroit Varsity | C17: 134 | D17: 181 | E17: 315 | F17: 186 | G17: 170 | H17: 356 | I17: 158 | J17: 125 | K17: 283 | L17: 128 | M17: 147 | N17: 275 | O17: 136 | P17: 153 | Q17: 289 | R17: 170 | S17: 154 | T17: 1842
B18: Father Gabriel Richard Varsity A | C18: 167 | D18: 115 | E18: 282 | F18: 165 | G18: 152 | H18: 317 | I18: 132 | J18: 134 | K18: 266 | L18: 164 | M18: 150 | N18: 314 | O18: 166 | P18: 156 | Q18: 322 | R18: 165 | S18: 199 | T18: 1865
B19: Father Gabriel Richard Varsity B | C19: 144 | D19: 118 | E19: 262 | F19: 152 | G19: 89 | H19: 241 | I19: 109 | J19: 97 | K19: 206 | L19: 102 | M19: 110 | N19: 212 | O19: 139 | P19: 117 | Q19: 256 | R19: 137 | S19: 105 | T19: 1419
B20: Father Gabriel Richard Varsity C | C20: 99 | D20: 98 | E20: 197 | F20: 134 | G20: 129 | H20: 263 | I20: 106 | J20: 114 | K20: 220 | L20: 103 | M20: 79 | N20: 182 | O20: 96 | P20: 121 | Q20: 217 | R20: 127 | S20: 122 | T20: 1328
B21: Lakeview Varsity A | C21: 193 | D21: 161 | E21: 354 | F21: 172 | G21: 147 | H21: 319 | I21: 208 | J21: 149 | K21: 357 | L21: 148 | M21: 153 | N21: 301 | O21: 118 | P21: 150 | Q21: 268 | R21: 168 | S21: 175 | T21: 1942
B22: Lakeview Varsity B | C22: 199 | D22: 203 | E22: 402 | F22: 179 | G22: 209 | H22: 388 | I22: 134 | J22: 195 | K22: 329 | L22: 201 | M22: 192 | N22: 393 | O22: 193 | P22: 167 | Q22: 360 | R22: 171 | S22: 199 | T22: 2242
B23: LCN Varsity A | C23: 217 | D23: 197 | E23: 414 | F23: 187 | G23: 209 | H23: 396 | I23: 185 | J23: 158 | K23: 343 | L23: 182 | M23: 238 | N23: 420 | O23: 164 | P23: 192 | Q23: 356 | R23: 222 | S23: 267 | T23: 2418
B24: LCN Varsity B | C24: 204 | D24: 156 | E24: 360 | F24: 186 | G24: 211 | H24: 397 | I24: 212 | J24: 187 | K24: 399 | L24: 257 | M24: 174 | N24: 431 | O24: 173 | P24: 208 | Q24: 381 | R24: 157 | S24: 198 | T24: 2323
B25: LCN Varsity C | C25: 137 | D25: 124 | E25: 261 | F25: 190 | G25: 149 | H25: 339 | I25: 184 | J25: 168 | K25: 352 | L25: 192 | M25: 194 | N25: 386 | O25: 141 | P25: 165 | Q25: 306 | R25: 149 | S25: 174 | T25: 1967
B26: Port Huron Northern Varsity A | C26: 167 | D26: 143 | E26: 310 | F26: 186 | G26: 182 | H26: 368 | I26: 162 | J26: 174 | K26: 336 | L26: 173 | M26: 203 | N26: 376 | O26: 212 | P26: 145 | Q26: 357 | R26: 145 | S26: 192 | T26: 2084
B27: Port Huron Northern Varsity B | C27: 196 | D27: 153 | E27: 349 | F27: 184 | G27: 136 | H27: 320 | I27: 165 | J27: 149 | K27: 314 | L27: 145 | M27: 151 | N27: 296 | O27: 162 | P27: 151 | Q27: 313 | R27: 218 | S27: 191 | T27: 2001
B28: Port Huron Northern Varsity C | C28: 113 | D28: 138 | E28: 251 | F28: 160 | G28: 128 | H28: 288 | I28: 114 | J28: 191 | K28: 305 | L28: 179 | M28: 141 | N28: 320 | O28: 146 | P28: 215 | Q28: 361 | R28: 153 | S28: 112 | T28: 1790
B29: Riverview Varsity | C29: 169 | D29: 164 | E29: 333 | F29: 183 | G29: 158 | H29: 341 | I29: 126 | J29: 203 | K29: 329 | L29: 146 | M29: 117 | N29: 263 | O29: 108 | P29: 219 | Q29: 327 | R29: 211 | S29: 133 | T29: 1937
B30: Stevenson Varsity A | C30: 168 | D30: 162 | E30: 330 | F30: 167 | G30: 177 | H30: 344 | I30: 183 | J30: 156 | K30: 339 | L30: 156 | M30: 135 | N30: 291 | O30: 175 | P30: 189 | Q30: 364 | R30: 198 | S30: 207 | T30: 2073
B31: Stevenson Varsity B | C31: 246 | D31: 168 | E31: 414 | F31: 143 | G31: 236 | H31: 379 | I31: 182 | J31: 148 | K31: 330 | L31: 159 | M31: 174 | N31: 333 | O31: 193 | P31: 199 | Q31: 392 | R31: 169 | S31: 164 | T31: 2181
B32: Stevenson Varsity C | C32: 136 | D32: 175 | E32: 311 | F32: 178 | G32: 171 | H32: 349 | I32: 158 | J32: 170 | K32: 328 | L32: 137 | M32: 142 | N32: 279 | O32: 162 | P32: 140 | Q32: 302 | R32: 161 | S32: 145 | T32: 1875
B33: Troy Varsity | C33: 144 | D33: 139 | E33: 283 | F33: 137 | G33: 151 | H33: 288 | I33: 199 | J33: 122 | K33: 321 | L33: 175 | M33: 188 | N33: 363 | O33: 189 | P33: 172 | Q33: 361 | R33: 217 | S33: 128 | T33: 1961
B34: Utica Varsity A | C34: 169 | D34: 176 | E34: 345 | F34: 143 | G34: 209 | H34: 352 | I34: 184 | J34: 218 | K34: 402 | L34: 179 | M34: 184 | N34: 363 | O34: 170 | P34: 165 | Q34: 335 | R34: 181 | S34: 205 | T34: 2183
B35: Utica Varsity B | C35: 218 | D35: 188 | E35: 406 | F35: 166 | G35: 174 | H35: 340 | I35: 146 | J35: 138 | K35: 284 | L35: 145 | M35: 168 | N35: 313 | O35: 173 | P35: 121 | Q35: 294 | R35: 154 | S35: 153 | T35: 1944
B36: Warren Mott Varsity | C36: 202 | D36: 165 | E36: 367 | F36: 172 | G36: 205 | H36: 377 | I36: 135 | J36: 156 | K36: 291 | L36: 200 | M36: 180 | N36: 380 | O36: 167 | P36: 199 | Q36: 366 | R36: 194 | S36: 183 | T36: 2158
B37: Warren Woods Tower Varsity | C37: 205 | D37: 175 | E37: 380 | F37: 108 | G37: 128 | H37: 236 | I37: 114 | J37: 172 | K37: 286 | L37: 116 | M37: 161 | N37: 277 | O37: 189 | P37: 127 | Q37: 316 | R37: 173 | S37: 159 | T37: 1827
E38: =SUM(C38:D38) -> 0 | H38: =SUM(F38:G38) -> 0 | K38: =SUM(I38:J38) -> 0 | N38: =SUM(L38:M38) -> 0 | Q38: =SUM(O38:P38) -> 0 | T38: =E38+H38+K38+N38+Q38+R38+S38 -> 0
E39: 0 | H39: 0 | K39: 0 | N39: 0 | Q39: 0 | T39: 0
E40: 0 | H40: 0 | K40: 0 | N40: 0 | Q40: 0 | T40: 0
E41: 0 | H41: 0 | K41: 0 | N41: 0 | Q41: 0 | T41: 0
E42: 0 | H42: 0 | K42: 0 | N42: 0 | Q42: 0 | T42: 0
E43: 0 | H43: 0 | K43: 0 | N43: 0 | Q43: 0 | T43: 0
E44: 0 | H44: 0 | K44: 0 | N44: 0 | Q44: 0 | T44: 0
E45: 0 | H45: 0 | K45: 0 | N45: 0 | Q45: 0 | T45: 0
E46: =SUM(C46:D46) -> 0 | H46: =SUM(F46:G46) -> 0 | K46: =SUM(I46:J46) -> 0 | N46: =SUM(L46:M46) -> 0 | Q46: =SUM(O46:P46) -> 0 | T46: =E46+H46+K46+N46+Q46+R46+S46 -> 0
E47: 0 | H47: 0 | K47: 0 | N47: 0 | Q47: 0 | T47: 0
E48: 0 | H48: 0 | K48: 0 | N48: 0 | Q48: 0 | T48: 0
E49: 0 | H49: 0 | K49: 0 | N49: 0 | Q49: 0 | T49: 0
E50: 0 | H50: 0 | K50: 0 | N50: 0 | Q50: 0 | T50: 0
E51: 0 | H51: 0 | K51: 0 | N51: 0 | Q51: 0 | T51: 0
E52: 0 | H52: 0 | K52: 0 | N52: 0 | Q52: 0 | T52: 0
E53: 0 | H53: 0 | K53: 0 | N53: 0 | Q53: 0 | T53: 0
E54: 0 | H54: 0 | K54: 0 | N54: 0 | Q54: 0 | T54: 0
E55: 0 | H55: 0 | K55: 0 | N55: 0 | Q55: 0 | T55: 0
E56: 0 | H56: 0 | K56: 0 | N56: 0 | Q56: 0 | T56: 0
E57: 0 | H57: 0 | K57: 0 | N57: 0 | Q57: 0 | T57: 0
E58: 0 | H58: 0 | K58: 0 | N58: 0 | Q58: 0 | T58: 0
E59: 0 | H59: 0 | K59: 0 | N59: 0 | Q59: 0 | T59: 0
E60: 0 | H60: 0 | K60: 0 | N60: 0 | Q60: 0 | T60: 0
E61: 0 | H61: 0 | K61: 0 | N61: 0 | Q61: 0 | T61: =SUM(C61:S61) -> 0

Sheet JV
A1: Heartbreaker 2016 JV
B3: # of Qualifying Teams: | E3: 8
A5: Seed | B5: School | C5: Game 1 | D5: Game 2 | E5: Set 1 Total | F5: Game 3 | G5: Game 4 | H5: Set 2 Total | I5: Game 5 | J5: Game 6 | K5: Set 3 Total | L5: Game 7 | M5: Game 8 | N5: Set 4 Total | O5: Game 9 | P5: Game 10 | Q5: Set 5 Total | R5: Game 11 | S5: Game 12 | T5: Total
B6: CC/Mercy JV | C6: 137 | D6: 155 | E6: =SUM(C6:D6) -> 292 | F6: 122 | G6: 139 | H6: =SUM(F6:G6) -> 261 | I6: 143 | J6: 120 | K6: =SUM(I6:J6) -> 263 | L6: 158 | M6: 158 | N6: =SUM(L6:M6) -> 316 | O6: 165 | P6: 179 | Q6: =SUM(O6:P6) -> 344 | R6: 135 | S6: 183 | T6: =E6+H6+K6+N6+Q6+R6+S6 -> 1794
B7: DLS/Regina JV A | C7: 121 | D7: 108 | E7: 229 | F7: 109 | G7: 128 | H7: 237 | I7: 81 | J7: 103 | K7: 184 | L7: 147 | M7: 153 | N7: 300 | O7: 121 | P7: 118 | Q7: 239 | R7: 118 | S7: 102 | T7: 1409
B8: DLS/Regina JV B | C8: 165 | D8: 149 | E8: 314 | F8: 130 | G8: 140 | H8: 270 | I8: 169 | J8: 144 | K8: 313 | L8: 119 | M8: 126 | N8: 245 | O8: 119 | P8: 149 | Q8: 268 | R8: 145 | S8: 90 | T8: 1645
B9: Father Gabriel Richard JV A | C9: 136 | D9: 102 | E9: 238 | F9: 81 | G9: 100 | H9: 181 | I9: 101 | J9: 113 | K9: 214 | L9: 100 | M9: 100 | N9: 200 | O9: 123 | P9: 107 | Q9: 230 | R9: 114 | S9: 118 | T9: 1295
B10: Father Gabriel Richard JV B | C10: 172 | D10: 117 | E10: 289 | F10: 89 | G10: 77 | H10: 166 | I10: 105 | J10: 150 | K10: 255 | L10: 106 | M10: 104 | N10: 210 | O10: 84 | P10: 103 | Q10: 187 | R10: 103 | S10: 109 | T10: 1319
B11: Lakeview JV A | C11: 145 | D11: 112 | E11: 257 | F11: 137 | G11: 133 | H11: 270 | I11: 149 | J11: 148 | K11: 297 | L11: 116 | M11: 144 | N11: 260 | O11: 139 | P11: 153 | Q11: 292 | R11: 151 | S11: 165 | T11: 1692
B12: Lakeview JV B | C12: 138 | D12: 104 | E12: 242 | F12: 134 | G12: 135 | H12: 269 | I12: 108 | J12: 130 | K12: 238 | L12: 128 | M12: 137 | N12: 265 | O12: 146 | P12: 127 | Q12: 273 | R12: 147 | S12: 156 | T12: 1590
B13: LCN JV | C13: 143 | D13: 142 | E13: 285 | F13: 157 | G13: 139 | H13: 296 | I13: 184 | J13: 158 | K13: 342 | L13: 148 | M13: 127 | N13: 275 | O13: 150 | P13: 152 | Q13: 302 | R13: 112 | S13: 161 | T13: 1773
B14: Troy JV | C14: 154 | D14: 111 | E14: 265 | F14: 168 | G14: 99 | H14: 267 | I14: 168 | J14: 184 | K14: 352 | L14: 140 | M14: 149 | N14: 289 | O14: 138 | P14: 162 | Q14: 300 | R14: 170 | S14: 134 | T14: 1777
E15: =SUM(C15:D15) -> 0 | H15: =SUM(F15:G15) -> 0 | K15: =SUM(I15:J15) -> 0 | N15: =SUM(L15:M15) -> 0 | Q15: =SUM(O15:P15) -> 0 | T15: =E15+H15+K15+N15+Q15+R15+S15 -> 0
E16: =SUM(C16:D16) -> 0 | H16: =SUM(F16:G16) -> 0 | K16: =SUM(I16:J16) -> 0 | N16: =SUM(L16:M16) -> 0 | Q16: =SUM(O16:P16) -> 0 | T16: =E16+H16+K16+N16+Q16+R16+S16 -> 0
E17: 0 | H17: 0 | K17: 0 | N17: 0 | Q17: 0 | T17: 0
E18: 0 | H18: 0 | K18: 0 | N18: 0 | Q18: 0 | T18: 0
E19: 0 | H19: 0 | K19: 0 | N19: 0 | Q19: 0 | T19: 0
E20: 0 | H20: 0 | K20: 0 | N20: 0 | Q20: 0 | T20: 0
E21: =SUM(C21:D21) -> 0 | H21: =SUM(F21:G21) -> 0 | K21: =SUM(I21:J21) -> 0 | N21: =SUM(L21:M21) -> 0 | Q21: =SUM(O21:P21) -> 0 | T21: =E21+H21+K21+N21+Q21+R21+S21 -> 0
E22: 0 | H22: 0 | K22: 0 | N22: 0 | Q22: 0 | T22: 0
E23: 0 | H23: 0 | K23: 0 | N23: 0 | Q23: 0 | T23: 0
E24: 0 | H24: 0 | K24: 0 | N24: 0 | Q24: 0 | T24: 0
E25: 0 | H25: 0 | K25: 0 | N25: 0 | Q25: 0 | T25: 0
E26: 0 | H26: 0 | K26: 0 | N26: 0 | Q26: 0 | T26: 0
E27: 0 | H27: 0 | K27: 0 | N27: 0 | Q27: 0 | T27: 0
E28: 0 | H28: 0 | K28: 0 | N28: 0 | Q28: 0 | T28: 0
E29: 0 | H29: 0 | K29: 0 | N29: 0 | Q29: 0 | T29: 0
E30: 0 | H30: 0 | K30: 0 | N30: 0 | Q30: 0 | T30: 0
E31: 0 | H31: 0 | K31: 0 | N31: 0 | Q31: 0 | T31: 0
E32: 0 | H32: 0 | K32: 0 | N32: 0 | Q32: 0 | T32: 0
E33: 0 | H33: 0 | K33: 0 | N33: 0 | Q33: 0 | T33: 0
E34: 0 | H34: 0 | K34: 0 | N34: 0 | Q34: 0 | T34: 0
E35: 0 | H35: 0 | K35: 0 | N35: 0 | Q35: 0 | T35: 0
E36: 0 | H36: 0 | K36: 0 | N36: 0 | Q36: 0 | T36: 0
E37: 0 | H37: 0 | K37: 0 | N37: 0 | Q37: 0 | T37: 0
E38: =SUM(C38:D38) -> 0 | H38: =SUM(F38:G38) -> 0 | K38: =SUM(I38:J38) -> 0 | N38: =SUM(L38:M38) -> 0 | Q38: =SUM(O38:P38) -> 0 | T38: =E38+H38+K38+N38+Q38+R38+S38 -> 0
E39: 0 | H39: 0 | K39: 0 | N39: 0 | Q39: 0 | T39: 0
E40: 0 | H40: 0 | K40: 0 | N40: 0 | Q40: 0 | T40: 0
E41: 0 | H41: 0 | K41: 0 | N41: 0 | Q41: 0 | T41: 0
E42: 0 | H42: 0 | K42: 0 | N42: 0 | Q42: 0 | T42: 0
E43: 0 | H43: 0 | K43: 0 | N43: 0 | Q43: 0 | T43: 0
E44: 0 | H44: 0 | K44: 0 | N44: 0 | Q44: 0 | T44: 0
E45: 0 | H45: 0 | K45: 0 | N45: 0 | Q45: 0 | T45: 0
E46: 0 | H46: 0 | K46: 0 | N46: 0 | Q46: 0 | T46: 0
E47: 0 | H47: 0 | K47: 0 | N47: 0 | Q47: 0 | T47: 0
E48: 0 | H48: 0 | K48: 0 | N48: 0 | Q48: 0 | T48: 0
E49: 0 | H49: 0 | K49: 0 | N49: 0 | Q49: 0 | T49: 0
E50: 0 | H50: 0 | K50: 0 | N50: 0 | Q50: 0 | T50: 0
E51: 0 | H51: 0 | K51: 0 | N51: 0 | Q51: 0 | T51: 0
E52: 0 | H52: 0 | K52: 0 | N52: 0 | Q52: 0 | T52: 0
E53: 0 | H53: 0 | K53: 0 | N53: 0 | Q53: 0 | T53: 0
E54: 0 | H54: 0 | K54: 0 | N54: 0 | Q54: 0 | T54: 0
E55: 0 | H55: 0 | K55: 0 | N55: 0 | Q55: 0 | T55: 0
E56: 0 | H56: 0 | K56: 0 | N56: 0 | Q56: 0 | T56: 0
E57: 0 | H57: 0 | K57: 0 | N57: 0 | Q57: 0 | T57: 0
E58: 0 | H58: 0 | K58: 0 | N58: 0 | Q58: 0 | T58: 0
E59: 0 | H59: 0 | K59: 0 | N59: 0 | Q59: 0 | T59: 0
E60: 0 | H60: 0 | K60: 0 | N60: 0 | Q60: 0 | T60: 0
E61: 0 | H61: 0 | K61: 0 | N61: 0 | Q61: 0 | T61: 0
E62: 0 | H62: 0 | K62: 0 | N62: 0 | Q62: 0 | T62: 0
E63: 0 | H63: 0 | K63: 0 | N63: 0 | Q63: 0 | T63: 0
E64: 0 | H64: 0 | K64: 0 | N64: 0 | Q64: 0 | T64: 0
E65: 0 | H65: 0 | K65: 0 | N65: 0 | Q65: 0 | T65: 0
E66: 0 | H66: 0 | K66: 0 | N66: 0 | Q66: 0 | T66: 0
E67: 0 | H67: 0 | K67: 0 | N67: 0 | Q67: 0 | T67: 0
E68: 0 | H68: 0 | K68: 0 | N68: 0 | Q68: 0 | T68: 0
E69: 0 | H69: 0 | K69: 0 | N69: 0 | Q69: 0 | T69: =SUM(C69:S69) -> 0

Sheet VarsityBracket
A1: Varsity Bracket
A2: Round 1 | G2: Round 2 | M2: Round 3 | S2: Final Round
A3: Seed | B3: Team | C3: Gm 1 | D3: Gm 2 | E3: Gm 3 | G3: Seed | H3: Team | I3: Gm 1 | J3: Gm 2 | K3: Gm 3 | M3: Seed | N3: Team | O3: Gm 1 | P3: Gm 2 | Q3: Gm 3 | S3: Seed | T3: Team | U3: Gm 1 | V3: Gm 2 | W3: Gm 3 | X3: Results
A5: 1 | B5: LCN Varsity A | C5: 237 | D5: 211
B6: Lane 3 | G6: =IF(C5+C8+D5+D8+E5+E8=0,"",IF(C5>C8,IF(D5>D8,A5,IF(E5>E8,A5,A8)),IF(D5>D8,IF(E5>E8,A5,A8),A8))) -> 1 | H6: =IF(C5+C8+D5+D8+E5+E8=0,"",IF(C5>C8,IF(D5>D8,B5,IF(E5>E8,B5,B8)),IF(D5>D8,IF(E5>E8,B5,B8),B8))) -> LCN Varsity A | I6: 167 | J6: 178 | K6: 178
B7: Lane 4 | H7: Lane 7
A8: 16 | B8: Troy Varsity | C8: 147 | D8: 203
M9: =IF(I6+I12+J6+J12+K6+K12=0,"",IF(I6>I12,IF(J6>J12,G6,IF(K6>K12,G6,G12)),IF(J6>J12,IF(K6>K12,G6,G12),G12))) -> 1 | N9: =IF(I6+I12+J6+J12+K6+K12=0,"",IF(I6>I12,IF(J6>J12,H6,IF(K6>K12,H6,H12)),IF(J6>J12,IF(K6>K12,H6,H12),H12))) -> LCN Varsity A | O9: 213 | P9: 178
A10: 8 | B10: Warren Mott Varsity | C10: 178 | D10: 182 | N10: Lane 11
B11: Lane 5 | H11: Lane 8
B12: Lane 6 | G12: =IF(C10+C13+D10+D13+E10+E13=0,"",IF(C10>C13,IF(D10>D13,A10,IF(E10>E13,A10,A13)),IF(D10>D13,IF(E10>E13,A10,A13),A13))) -> 8 | H12: =IF(C10+C13+D10+D13+E10+E13=0,"",IF(C10>C13,IF(D10>D13,B10,IF(E10>E13,B10,B13)),IF(D10>D13,IF(E10>E13,B10,B13),B13))) -> Warren Mott Varsity | I12: 206 | J12: 167 | K12: 161
A13: 9 | B13: Port Huron Northern Varsity A | C13: 155 | D13: 146
S14: =IF(O9+O19+P9+P19+Q9+Q19=0,"",IF(O9>O19,IF(P9>P19,M9,IF(Q9>Q19,M9,M19)),IF(P9>P19,IF(Q9>Q19,M9,M19),M19))) -> 1 | T14: =IF(O9+O19+P9+P19+Q9+Q19=0,"",IF(O9>O19,IF(P9>P19,N9,IF(Q9>Q19,N9,N19)),IF(P9>P19,IF(Q9>Q19,N9,N19),N19))) -> LCN Varsity A | U14: 207 | V14: 220
A15: 5 | B15: Lakeview Varsity B | C15: 143 | D15: 167 | E15: 199 | T15: Lane 15
B16: Lane 9 | G16: =IF(C15+C18+D15+D18+E15+E18=0,"",IF(C15>C18,IF(D15>D18,A15,IF(E15>E18,A15,A18)),IF(D15>D18,IF(E15>E18,A15,A18),A18))) -> 5 | H16: =IF(C15+C18+D15+D18+E15+E18=0,"",IF(C15>C18,IF(D15>D18,B15,IF(E15>E18,B15,B18)),IF(D15>D18,IF(E15>E18,B15,B18),B18))) -> Lakeview Varsity B | I16: 181 | J16: 222 | K16: 202
B17: Lane 10 | H17: Lane 5
A18: 12 | B18: Chippewa Valley Varsity C | C18: 167 | D18: 161 | E18: 147 | N18: Lane 12
M19: =IF(I16+I22+J16+J22+K16+K22=0,"",IF(I16>I22,IF(J16>J22,G16,IF(K16>K22,G16,G22)),IF(J16>J22,IF(K16>K22,G16,G22),G22))) -> 13 | N19: =IF(I16+I22+J16+J22+K16+K22=0,"",IF(I16>I22,IF(J16>J22,H16,IF(K16>K22,H16,H22)),IF(J16>J22,IF(K16>K22,H16,H22),H22))) -> DLS/Regina Varsity A | O19: 170 | P19: 175
A20: 4 | B20: LCN Varsity B | C20: 142 | D20: 159
B21: Lane 11 | H21: Lane 6
B22: Lane 12 | G22: =IF(C20+C23+D20+D23+E20+E23=0,"",IF(C20>C23,IF(D20>D23,A20,IF(E20>E23,A20,A23)),IF(D20>D23,IF(E20>E23,A20,A23),A23))) -> 13 | H22: =IF(C20+C23+D20+D23+E20+E23=0,"",IF(C20>C23,IF(D20>D23,B20,IF(E20>E23,B20,B23)),IF(D20>D23,IF(E20>E23,B20,B23),B23))) -> DLS/Regina Varsity A | I22: 203 | J22: 176 | K22: 221
A23: 13 | B23: DLS/Regina Varsity A | C23: 162 | D23: 213 | X23: Champion | Y23: =IF(U14+U34+V14+V34+W14+W34=0,"",IF(U14>U34,IF(V14>V34,T14,IF(W14>W34,T14,T34)),IF(V14>V34,IF(W14>W34,T14,T34),T34))) -> LCN Varsity A
A25: 6 | B25: Utica Varsity A | C25: 226 | D25: 238 | X25: Runner-up | Y25: =IF(U14+U34+V14+V34+W14+W34=0,"",IF(U14>U34,IF(V14>V34,T34,IF(W14>W34,T34,T14)),IF(V14>V34,IF(W14>W34,T34,T14),T14))) -> Cousino Varsity A
B26: Lane 15 | G26: =IF(C25+C28+D25+D28+E25+E28=0,"",IF(C25>C28,IF(D25>D28,A25,IF(E25>E28,A25,A28)),IF(D25>D28,IF(E25>E28,A25,A28),A28))) -> 6 | H26: =IF(C25+C28+D25+D28+E25+E28=0,"",IF(C25>C28,IF(D25>D28,B25,IF(E25>E28,B25,B28)),IF(D25>D28,IF(E25>E28,B25,B28),B28))) -> Utica Varsity A | I26: 200 | J26: 173 | K26: 217
B27: Lane 16 | H27: Lane 11 | X27: 3rd Place | Y27: =IF(U39+U43+V39+V43+W39+W43=0,"",IF(U39>U43,IF(V39>V43,T39,IF(W39>W43,T39,T43)),IF(V39>V43,IF(W39>W43,T39,T43),T43))) -> DLS/Regina Varsity A
A28: 11 | B28: Stevenson Varsity A | C28: 156 | D28: 180
M29: =IF(I26+I32+J26+J32+K26+K32=0,"",IF(I26>I32,IF(J26>J32,G26,IF(K26>K32,G26,G32)),IF(J26>J32,IF(K26>K32,G26,G32),G32))) -> 6 | N29: =IF(I26+I32+J26+J32+K26+K32=0,"",IF(I26>I32,IF(J26>J32,H26,IF(K26>K32,H26,H32)),IF(J26>J32,IF(K26>K32,H26,H32),H32))) -> Utica Varsity A | O29: 185 | P29: 163 | X29: 4th Place | Y29: =IF(U39+U43+V39+V43+W39+W43=0,"",IF(U39>U43,IF(V39>V43,T43,IF(W39>W43,T43,T39)),IF(V39>V43,IF(W39>W43,T43,T39),T39))) -> Utica Varsity A
A30: 3 | B30: Davison Varsity | C30: 199 | D30: 192 | N30: Lane 9
B31: Lane 17 | H31: Lane 12
B32: Lane 18 | G32: =IF(C30+C33+D30+D33+E30+E33=0,"",IF(C30>C33,IF(D30>D33,A30,IF(E30>E33,A30,A33)),IF(D30>D33,IF(E30>E33,A30,A33),A33))) -> 3 | H32: =IF(C30+C33+D30+D33+E30+E33=0,"",IF(C30>C33,IF(D30>D33,B30,IF(E30>E33,B30,B33)),IF(D30>D33,IF(E30>E33,B30,B33),B33))) -> Davison Varsity | I32: 189 | J32: 207 | K32: 214
A33: 14 | B33: Port Huron Northern Varsity B | C33: 152 | D33: 168 | T33: Lane 16
S34: =IF(O29+O39+P29+P39+Q29+Q39=0,"",IF(O29>O39,IF(P29>P39,M29,IF(Q29>Q39,M29,M39)),IF(P29>P39,IF(Q29>Q39,M29,M39),M39))) -> 2 | T34: =IF(O29+O39+P29+P39+Q29+Q39=0,"",IF(O29>O39,IF(P29>P39,N29,IF(Q29>Q39,N29,N39)),IF(P29>P39,IF(Q29>Q39,N29,N39),N39))) -> Cousino Varsity A | U34: 173 | V34: 205
A35: 7 | B35: Stevenson Varsity B | C35: 188 | D35: 165 | E35: 154
B36: Lane 21 | G36: =IF(C35+C38+D35+D38+E35+E38=0,"",IF(C35>C38,IF(D35>D38,A35,IF(E35>E38,A35,A38)),IF(D35>D38,IF(E35>E38,A35,A38),A38))) -> 10 | H36: =IF(C35+C38+D35+D38+E35+E38=0,"",IF(C35>C38,IF(D35>D38,B35,IF(E35>E38,B35,B38)),IF(D35>D38,IF(E35>E38,B35,B38),B38))) -> Chippewa Valley Varsity A | I36: 210 | J36: 177
B37: Lane 22 | H37: Lane 13
A38: 10 | B38: Chippewa Valley Varsity A | C38: 162 | D38: 222 | E38: 222 | N38: Lane 10
M39: =IF(I36+I42+J36+J42+K36+K42=0,"",IF(I36>I42,IF(J36>J42,G36,IF(K36>K42,G36,G42)),IF(J36>J42,IF(K36>K42,G36,G42),G42))) -> 2 | N39: =IF(I36+I42+J36+J42+K36+K42=0,"",IF(I36>I42,IF(J36>J42,H36,IF(K36>K42,H36,H42)),IF(J36>J42,IF(K36>K42,H36,H42),H42))) -> Cousino Varsity A | O39: 196 | P39: 200 | S39: =IF(O9+O19+P9+P19+Q9+Q19=0,"",IF(O9>O19,IF(P9>P19,M19,IF(Q9>Q19,M19,M9)),IF(P9>P19,IF(Q9>Q19,M19,M9),M9))) -> 13 | T39: =IF(O9+O19+P9+P19+Q9+Q19=0,"",IF(O9>O19,IF(P9>P19,N19,IF(Q9>Q19,N19,N9)),IF(P9>P19,IF(Q9>Q19,N19,N9),N9))) -> DLS/Regina Varsity A | U39: 127 | V39: 169 | W39: 188
A40: 2 | B40: Cousino Varsity A | C40: 188 | D40: 179 | T40: Lane 7
B41: Lane 23 | H41: Lane 14
B42: Lane 24 | G42: =IF(C40+C43+D40+D43+E40+E43=0,"",IF(C40>C43,IF(D40>D43,A40,IF(E40>E43,A40,A43)),IF(D40>D43,IF(E40>E43,A40,A43),A43))) -> 2 | H42: =IF(C40+C43+D40+D43+E40+E43=0,"",IF(C40>C43,IF(D40>D43,B40,IF(E40>E43,B40,B43)),IF(D40>D43,IF(E40>E43,B40,B43),B43))) -> Cousino Varsity A | I42: 213 | J42: 208 | T42: Lane 8
A43: 15 | B43: LCN Varsity C | C43: 146 | D43: 162 | S43: =IF(O29+O39+P29+P39+Q29+Q39=0,"",IF(O29>O39,IF(P29>P39,M39,IF(Q29>Q39,M39,M29)),IF(P29>P39,IF(Q29>Q39,M39,M29),M29))) -> 6 | T43: =IF(O29+O39+P29+P39+Q29+Q39=0,"",IF(O29>O39,IF(P29>P39,N39,IF(Q29>Q39,N39,N29)),IF(P29>P39,IF(Q29>Q39,N39,N29),N29))) -> Utica Varsity A | U43: 190 | V43: 152 | W43: 170

Sheet JVBracket
A1: JV Bracket
A2: Round 1 | G2: Round 2 | M2: Final Round
A3: Seed | B3: Team | C3: Gm 1 | D3: Gm 2 | E3: Gm 3 | G3: Seed | H3: Team | I3: Gm 1 | J3: Gm 2 | K3: Gm 3 | M3: Seed | N3: Team | O3: Gm 1 | P3: Gm 2 | Q3: Gm 3 | R3: Results
A5: 1 | B5: CC/Mercy JV | C5: 164 | D5: 115
B6: Lane 27 | G6: =IF(C5+C8+D5+D8+E5+E8=0,"",IF(C5>C8,IF(D5>D8,A5,IF(E5>E8,A5,A8)),IF(D5>D8,IF(E5>E8,A5,A8),A8))) -> 1 | H6: =IF(C5+C8+D5+D8+E5+E8=0,"",IF(C5>C8,IF(D5>D8,B5,IF(E5>E8,B5,B8)),IF(D5>D8,IF(E5>E8,B5,B8),B8))) -> CC/Mercy JV | I6: 131 | J6: 138
B7: Lane 28 | H7: Lane 21
A8: 8 | B8: Father Gabriel Richard JV B | C8: 123 | D8: 86
M9: =IF(I6+I12+J6+J12+K6+K12=0,"",IF(I6>I12,IF(J6>J12,G6,IF(K6>K12,G6,G12)),IF(J6>J12,IF(K6>K12,G6,G12),G12))) -> 4 | N9: =IF(I6+I12+J6+J12+K6+K12=0,"",IF(I6>I12,IF(J6>J12,H6,IF(K6>K12,H6,H12)),IF(J6>J12,IF(K6>K12,H6,H12),H12))) -> Lakeview JV A | O9: 143 | P9: 196 | Q9: 116
A10: 4 | B10: Lakeview JV A | C10: 138 | D10: 140 | N10: Lane 17
B11: Lane 29 | H11: Lane 22
B12: Lane 30 | G12: =IF(C10+C13+D10+D13+E10+E13=0,"",IF(C10>C13,IF(D10>D13,A10,IF(E10>E13,A10,A13)),IF(D10>D13,IF(E10>E13,A10,A13),A13))) -> 4 | H12: =IF(C10+C13+D10+D13+E10+E13=0,"",IF(C10>C13,IF(D10>D13,B10,IF(E10>E13,B10,B13)),IF(D10>D13,IF(E10>E13,B10,B13),B13))) -> Lakeview JV A | I12: 157 | J12: 142
A13: 5 | B13: DLS/Regina JV B | C13: 115 | D13: 139
R14: Champion | T14: =IF(O9+O19+P9+P19+Q9+Q19=0,"",IF(O9>O19,IF(P9>P19,N9,IF(Q9>Q19,N9,N19)),IF(P9>P19,IF(Q9>Q19,N9,N19),N19))) -> LCN JV
A15: 3 | B15: LCN JV | C15: 166 | D15: 169 | E15: 129
B16: Lane 33 | G16: =IF(C15+C18+D15+D18+E15+E18=0,"",IF(C15>C18,IF(D15>D18,A15,IF(E15>E18,A15,A18)),IF(D15>D18,IF(E15>E18,A15,A18),A18))) -> 3 | H16: =IF(C15+C18+D15+D18+E15+E18=0,"",IF(C15>C18,IF(D15>D18,B15,IF(E15>E18,B15,B18)),IF(D15>D18,IF(E15>E18,B15,B18),B18))) -> LCN JV | I16: 161 | J16: 127 | R16: Runner-up | T16: =IF(O9+O19+P9+P19+Q9+Q19=0,"",IF(O9>O19,IF(P9>P19,N19,IF(Q9>Q19,N19,N9)),IF(P9>P19,IF(Q9>Q19,N19,N9),N9))) -> Lakeview JV A
B17: Lane 34 | H17: Lane 23
A18: 6 | B18: Lakeview JV B | C18: 137 | D18: 185 | E18: 114 | N18: Lane 18
M19: =IF(I16+I22+J16+J22+K16+K22=0,"",IF(I16>I22,IF(J16>J22,G16,IF(K16>K22,G16,G22)),IF(J16>J22,IF(K16>K22,G16,G22),G22))) -> 3 | N19: =IF(I16+I22+J16+J22+K16+K22=0,"",IF(I16>I22,IF(J16>J22,H16,IF(K16>K22,H16,H22)),IF(J16>J22,IF(K16>K22,H16,H22),H22))) -> LCN JV | O19: 155 | P19: 132 | Q19: 117
A20: 2 | B20: Troy JV | C20: 135 | D20: 122
B21: Lane 35 | H21: Lane 24
B22: Lane 36 | G22: =IF(C20+C23+D20+D23+E20+E23=0,"",IF(C20>C23,IF(D20>D23,A20,IF(E20>E23,A20,A23)),IF(D20>D23,IF(E20>E23,A20,A23),A23))) -> 7 | H22: =IF(C20+C23+D20+D23+E20+E23=0,"",IF(C20>C23,IF(D20>D23,B20,IF(E20>E23,B20,B23)),IF(D20>D23,IF(E20>E23,B20,B23),B23))) -> DLS/Regina JV A | I22: 124 | J22: 115
A23: 7 | B23: DLS/Regina JV A | C23: 144 | D23: 149

Sheet Button Guide
B2: Button Guide
B3: Name | C3: Key Combination | D3: Description
B4: Seed | D4: During qualifying this macro sorts the active qualifying sheet (Varsity or JV) by total score, seeds according to number of qualifying teams, and hides columns and rows for printability.
B5: Alpha Sort | D5: During qualifying this marco sorts alphabetically by team name, removes seeding, and unhides columns hidden by Seed macro to allow qualifying round score entry.
B6: Brackets | D6: After qualifying is completed this macro seeds teams and builds brackets based on what qualifying sheet (Varsity or JV) you are viewing.
B7: Clear | C7: Ctrl+Shift+C | D7: If needed, this marco removes all brackets and formating, and clears team names and scores from all sheets.
B8: Hide | D8: Hide columns to show only current set for score entry.
B9: Unhide | D9: Shows all columns

Sheet BracketPlayScoreSheet
B2: Bracket Play | E2: Game 1 | F2: Game 2 | G2: Game 3
A4: Team 1
A7: Team 2
